bitfinex/quotes_BTCUSD_20250225
["timestamp","ask_amount","ask_price","bid_price","bid_amount"]
[1740509185763,0.471412,87508.0,87507.0,0.0468]
[1740509185977,0.17142,87504.0,87503.0,0.0008481]
[1740509186937,0.171416,87507.0,87503.0,0.0008481]
[1740509187144,0.0001268,87504.0,87503.0,0.0008481]
[1740509187419,0.0001268,87504.0,87503.0,0.03857559]
[1740509187628,0.0001268,87504.0,87503.0,0.0008481]
[1740509187860,0.0001268,87504.0,87503.0,0.30082389]
[1740509188079,0.0001268,87504.0,87503.0,0.12940189]
[1740509188303,0.0001268,87504.0,87503.0,0.42572389]
[1740509188511,0.03088098,87539.0,87517.0,0.1]
[1740509188749,0.171412,87508.0,87507.0,0.0008489]
[1740509188930,0.00849517,87531.0,87517.0,0.1]
[1740509189162,0.228474,87538.0,87522.0,0.02855379]
[1740509189388,0.228474,87538.0,87518.0,0.01285538]
[1740509189389,0.00878761,87540.0,87527.0,0.07485379]
[1740509189620,0.228454,87545.0,87536.0,0.02855379]
[1740509189818,0.171346,87542.0,87536.0,0.02855379]
[1740509190042,0.03161518,87549.0,87541.0,0.36508217]
[1740509190257,0.03161518,87549.0,87548.0,0.02855379]
[1740509190475,0.171336,87547.0,87546.0,0.02855379]
[1740509191124,0.171336,87547.0,87546.0,0.02555379]
[1740509191557,0.171342,87544.0,87543.0,0.12555379]
[1740509192225,0.00012758,87549.0,87546.0,0.02555379]
[1740509192422,0.00012758,87549.0,87548.0,0.02555379]
[1740509192857,0.17145958,87549.0,87548.0,0.02555379]
[1740509193078,0.171336,87547.0,87546.0,0.02555379]
[1740509193283,0.228456,87544.0,87541.0,0.36508217]
[1740509193516,0.171352,87539.0,87538.0,0.0805]
[1740509193952,0.171373,87528.0,87527.0,0.14625379]
[1740509194167,0.3,87551.0,87537.0,0.02555379]
[1740509194376,0.3293,87566.0,87539.0,0.02555379]
[1740509194585,0.3293,87566.0,87527.0,0.1207]
[1740509194586,0.3293,87566.0,87545.0,0.0754]
[1740509194800,0.228424,87557.0,87545.0,0.0754]
[1740509194981,0.3309832,87554.0,87545.0,0.0754]
[1740509195191,0.3309832,87554.0,87548.0,0.07525379]
[1740509195865,0.0309832,87554.0,87548.0,0.07525379]
[1740509196072,0.171326,87553.0,87548.0,0.07525379]
[1740509196268,0.2023072,87554.0,87548.0,0.17525379]
[1740509196485,0.3,87560.0,87548.0,0.17525379]
[1740509196687,0.17132,87556.0,87548.0,0.17525379]
[1740509196889,0.3,87559.0,87548.0,0.17525379]
[1740509197093,0.228417,87560.0,87548.0,0.17525379]
[1740509197094,0.034345,87581.0,87548.0,0.34658779]
[1740509197349,0.3293,87603.0,87548.0,0.25655475]
[1740509197556,0.00182533,87592.0,87570.0,0.0794]
[1740509197891,0.17127,87582.0,87573.0,0.0478]
[1740509198100,0.3,87583.0,87573.0,0.0478]
[1740509198313,0.00182533,87592.0,87573.0,0.0478]
[1740509198518,0.0309992,87583.0,87573.0,0.07235379]
[1740509198780,0.162917,87574.0,87573.0,0.0478]
[1740509199476,0.462917,87574.0,87573.0,0.0478]
[1740509199684,0.171307,87562.0,87561.0,9.6e-07]
[1740509199883,0.471307,87562.0,87561.0,9.6e-07]
[1740509200538,0.3,87562.0,87561.0,9.6e-07]
[1740509200716,0.3,87562.0,87561.0,0.02455475]
[1740509200930,0.3,87562.0,87561.0,9.6e-07]
[1740509201149,0.471307,87562.0,87561.0,9.6e-07]
[1740509201365,0.471307,87562.0,87561.0,0.02455475]
[1740509201577,0.471307,87562.0,87561.0,9.6e-07]
[1740509201797,0.471307,87562.0,87561.0,0.00300096]
[1740509202143,0.471307,87562.0,87561.0,9.6e-07]
[1740509202347,0.471307,87562.0,87550.0,0.0777]
[1740509202348,0.3,87561.0,87550.0,0.0777]
[1740509202562,0.3,87550.0,87543.0,0.02455379]
[1740509202765,0.228423,87557.0,87541.0,0.083]
[1740509202766,0.17134,87545.0,87541.0,0.083]
[1740509203388,0.171346,87542.0,87541.0,0.083]
[1740509203585,0.471346,87542.0,87541.0,0.083]
[1740509204015,0.228415,87560.0,87541.0,0.083]
[1740509204016,0.228412,87561.0,87544.0,0.02455379]
[1740509204225,0.47134,87545.0,87544.0,0.02455379]
[1740509204435,0.171346,87542.0,87541.0,0.10755379]
[1740509204862,0.03201696,87583.0,87550.0,0.02455379]
[1740509205070,0.3,87560.0,87546.0,0.02355379]
[1740509205272,0.171336,87547.0,87546.0,0.14470917]
[1740509205476,0.228433,87553.0,87550.0,0.02355379]
[1740509205870,0.3,87588.0,87551.0,0.0488]
[1740509206080,0.17132,87555.0,87551.0,0.0488]
[1740509206326,0.06636196,87583.0,87551.0,0.0488]
[1740509206327,0.003,87560.0,87558.0,0.02255379]
[1740509206527,0.171313,87559.0,87558.0,0.02255379]
[1740509206735,0.171316,87557.0,87556.0,0.02255379]
[1740509206916,0.003,87560.0,87558.0,0.02255379]
[1740509207087,0.003,87560.0,87559.0,0.0794]
[1740509207305,0.003,87560.0,87559.0,0.20195379]
[1740509207462,0.003,87560.0,87559.0,0.10195379]
[1740509207463,0.171311,87560.0,87559.0,0.10195379]
[1740509207850,0.0016984,87562.0,87561.0,0.12255379]
[1740509208255,0.1730054,87562.0,87561.0,0.12255379]
[1740509208464,0.0016984,87562.0,87561.0,0.29386279]
[1740509209022,0.0016984,87562.0,87561.0,0.47195213]
[1740509209241,0.3293,87625.0,87584.0,0.0498]
[1740509209242,0.171262,87585.0,87584.0,0.0498]
[1740509209449,0.171262,87585.0,87584.0,0.07958917]
[1740509209669,0.17138953,87585.0,87584.0,0.07958917]
[1740509209877,0.20308659,87585.0,87584.0,0.0498]
[1740509210851,0.20308659,87585.0,87584.0,0.0488]
[1740509211461,0.171271,87580.0,87579.0,9.6e-07]
[1740509212606,0.171271,87580.0,87544.0,0.171342]
[1740509212607,0.03182459,87585.0,87552.0,0.0794]
[1740509212834,0.03182459,87585.0,87521.0,0.5366]
[1740509212835,0.171342,87544.0,87543.0,0.0794]
[1740509213090,0.228449,87547.0,87536.0,0.02340299]
[1740509213091,0.171356,87537.0,87536.0,0.02340299]
[1740509213339,0.20284829,87537.0,87536.0,0.02340299]
[1740509213575,0.171356,87537.0,87536.0,0.02340299]
[1740509213855,0.171334,87548.0,87547.0,0.02255379]
[1740509214282,0.471334,87548.0,87547.0,0.02297922]
[1740509214748,0.471334,87548.0,87547.0,0.02197922]
[1740509215213,0.49898632,87548.0,87547.0,0.00042543]
[1740509215467,0.49898632,87548.0,87547.0,0.01055335]
[1740509215685,0.49898632,87548.0,87547.0,0.00342543]
[1740509216116,0.228365,87579.0,87556.0,0.02155379]
[1740509216348,0.00854612,87573.0,87558.0,0.02155379]
[1740509216575,0.171313,87559.0,87558.0,0.02155379]
[1740509217056,0.3,87567.0,87559.0,0.02155379]
[1740509217272,0.171311,87560.0,87559.0,0.02155379]
[1740509217522,0.3,87567.0,87566.0,0.02155379]
[1740509217747,0.471297,87567.0,87566.0,0.09865379]
[1740509220057,0.228372,87577.0,87567.0,0.02155379]
[1740509220263,0.171283,87575.0,87567.0,0.02155379]
[1740509220618,0.171293,87569.0,87568.0,0.0478]
[1740509220829,0.171315,87558.0,87557.0,0.0774]
[1740509221043,0.3,87573.0,87543.0,9.6e-07]
[1740509221044,0.3,87560.0,87546.0,0.09895379]
[1740509221295,0.171328,87551.0,87546.0,0.0774]
[1740509221498,0.471328,87551.0,87546.0,0.0774]
[1740509221642,0.471328,87551.0,87542.0,0.0484]
[1740509222303,0.471328,87551.0,87550.0,0.0028492]
[1740509222648,0.471328,87551.0,87550.0,0.0008492]
[1740509223503,0.471328,87551.0,87550.0,2e-07]
[1740509223705,0.171356,87537.0,87536.0,0.0008492]
[1740509224851,0.471356,87537.0,87536.0,0.0008492]
[1740509225266,0.471356,87537.0,87536.0,0.0048492]
[1740509225795,0.3,87536.0,87508.0,9.6e-07]
[1740509225956,0.3,87532.0,87512.0,0.02155379]
[1740509226155,0.171403,87513.0,87512.0,0.02155379]
[1740509226793,0.171399,87515.0,87512.0,0.02155379]
[1740509226937,0.228511,87523.0,87516.0,0.02155379]
[1740509227138,0.528448,87547.0,87523.0,0.02155379]
[1740509227428,0.3,87524.0,87523.0,0.02155379]
[1740509227830,0.00042501,87547.0,87529.0,0.02155379]
[1740509228074,0.228451,87546.0,87532.0,0.02155379]
[1740509228276,0.00042501,87547.0,87536.0,0.02240189]
[1740509228474,0.171356,87537.0,87536.0,0.02240189]
[1740509228978,0.3,87542.0,87536.0,0.02240189]
[1740509229174,0.471356,87537.0,87536.0,0.0008481]
[1740509229295,0.471356,87537.0,87536.0,1e-07]
[1740509229496,0.471377,87526.0,87525.0,9.6e-07]
[1740509229702,0.171397,87516.0,87515.0,0.0818]
[1740509229916,0.471397,87516.0,87515.0,0.0818]
[1740509230994,0.471397,87516.0,87515.0,0.08192758]
[1740509231204,0.471397,87516.0,87515.0,0.00012758]
[1740509232030,0.48002153,87516.0,87515.0,0.00012758]
[1740509232401,0.48102153,87516.0,87515.0,0.00012758]
[1740509232612,0.171412,87508.0,87507.0,0.0007219]
[1740509233042,0.58526896,87508.0,87507.0,0.0007219]
[1740509233258,0.58526896,87508.0,87507.0,9e-07]
[1740509233691,0.471426,87501.0,87484.0,0.0792]
[1740509233903,0.47136633,87501.0,87484.0,0.0792]
[1740509234126,0.47136633,87501.0,87485.0,0.02155379]
[1740509234127,0.3,87501.0,87485.0,0.02155379]
[1740509234360,0.3,87501.0,87496.0,0.02155379]
[1740509234572,0.471426,87501.0,87496.0,0.02155379]
[1740509234996,0.301,87501.0,87499.0,0.02155379]
[1740509235222,0.301,87501.0,87500.0,0.02159379]
[1740509235435,0.3,87501.0,87500.0,0.02159379]
[1740509235861,0.228513,87523.0,87500.0,0.02159379]
[1740509236070,0.171426,87501.0,87500.0,0.02159379]
[1740509236288,0.16862573,87501.0,87500.0,0.02159379]
[1740509236554,0.16862573,87501.0,87500.0,0.03375317]
[1740509236737,0.262854,87531.0,87508.0,0.02155379]
[1740509236971,0.47141,87509.0,87508.0,0.02155379]
[1740509237774,0.3,87507.0,87501.0,0.02155379]
[1740509238025,0.001,87516.0,87515.0,0.02155379]
[1740509238256,0.228505,87526.0,87516.0,0.02155379]
[1740509238472,0.00042509,87538.0,87523.0,0.02155379]
[1740509238690,0.00042509,87538.0,87525.0,0.02155379]
[1740509238929,0.00042509,87538.0,87521.0,0.0826]
[1740509238930,0.171385,87522.0,87521.0,0.0826]
[1740509239167,0.171385,87522.0,87521.0,0.10315379]
[1740509240019,0.471385,87522.0,87521.0,0.10400179]
[1740509240843,0.47132522,87522.0,87521.0,0.10400179]
[1740509241060,0.47132522,87522.0,87521.0,0.082448]
[1740509241275,0.47132522,87522.0,87521.0,0.000848]
[1740509241693,0.47132522,87522.0,87508.0,0.02155379]
[1740509241931,0.00850913,87529.0,87493.0,0.02155379]
[1740509241932,0.171426,87501.0,87493.0,0.02155379]
[1740509242162,0.471426,87501.0,87493.0,0.02155379]
[1740509243715,0.471426,87501.0,87491.0,0.0489]
[1740509243716,0.471426,87501.0,87496.0,0.02155379]
[1740509243962,0.471426,87501.0,87500.0,0.02159379]
[1740509244225,0.0028,87546.0,87508.0,0.02155379]
[1740509244226,0.171408,87511.0,87508.0,0.02155379]
[1740509244435,0.03437,87513.0,87512.0,0.02155379]
[1740509244646,0.171381,87524.0,87523.0,0.02155379]
[1740509244859,0.3,87524.0,87523.0,0.02155379]
[1740509245076,0.171377,87526.0,87525.0,0.02155379]
[1740509245288,0.22847,87539.0,87525.0,0.02155379]
[1740509245510,0.171377,87526.0,87525.0,0.02155379]
[1740509245932,0.47131733,87526.0,87525.0,0.02155379]
[1740509246139,0.171401,87514.0,87513.0,0.02155379]
[1740509247398,0.171405,87512.0,87511.0,0.083]
[1740509247602,0.228513,87522.0,87501.0,0.1]
[1740509247603,0.171424,87502.0,87501.0,0.0827]
[1740509248870,0.171424,87502.0,87501.0,0.09312938]
[1740509249127,0.3,87522.0,87502.0,0.02155379]
[1740509249351,0.171422,87503.0,87502.0,0.02155379]
[1740509250207,0.471422,87503.0,87502.0,0.02155379]
[1740509252079,0.3,87503.0,87502.0,0.03198317]
[1740509252295,0.471422,87503.0,87502.0,0.03198317]
[1740509252699,0.473119,87503.0,87502.0,0.03198317]
[1740509254206,0.47305921,87503.0,87502.0,0.03198317]
[1740509255684,0.30163721,87503.0,87502.0,0.03198317]
[1740509255944,0.47305921,87503.0,87502.0,0.03198317]
[1740509257900,0.171426,87501.0,87500.0,0.0008885]
[1740509258189,0.471426,87501.0,87500.0,5e-07]
[1740509260359,0.472426,87501.0,87500.0,5e-07]
[1740509261012,0.479426,87501.0,87500.0,5e-07]
[1740509261230,0.471426,87501.0,87500.0,5e-07]
[1740509261651,0.478426,87501.0,87500.0,5e-07]
[1740509261873,0.007,87501.0,87500.0,0.27028229]
[1740509262085,0.007,87501.0,87500.0,0.13588252]
[1740509262086,0.178426,87501.0,87500.0,0.13588252]
[1740509262316,0.013,87501.0,87500.0,0.28198252]
[1740509262533,0.013,87501.0,87500.0,0.4309241]
[1740509262734,0.013,87501.0,87500.0,0.2594961]
[1740509263090,0.013,87501.0,87500.0,0.54467163]
[1740509263301,0.013,87501.0,87500.0,0.37324363]
[1740509263503,0.013,87501.0,87500.0,0.48710059]
[1740509264067,0.001697,87503.0,87500.0,0.48710059]
[1740509264263,0.001697,87503.0,87502.0,0.11454085]
[1740509264525,0.001697,87503.0,87502.0,0.13309464]
[1740509265089,0.001697,87503.0,87502.0,0.13209464]
[1740509265298,0.173119,87503.0,87502.0,0.2351767]
[1740509265547,0.174119,87503.0,87502.0,0.096]
[1740509265774,0.174119,87503.0,87502.0,0.11755379]
[1740509265988,0.002697,87503.0,87502.0,0.11755379]
[1740509266403,0.002697,87503.0,87502.0,0.3051185]
[1740509266605,0.002697,87503.0,87502.0,0.13209464]
[1740509266810,0.002697,87503.0,87502.0,0.23416145]
[1740509267222,0.002697,87503.0,87502.0,0.23416241]
[1740509267663,0.002697,87503.0,87502.0,0.48448641]
[1740509267870,0.001697,87503.0,87502.0,0.59823394]
[1740509268079,0.228498,87528.0,87524.0,0.09945379]
[1740509268285,0.4730756,87525.0,87524.0,0.09945379]
[1740509268705,0.4730756,87525.0,87524.0,0.11799927]
[1740509268913,0.4730756,87525.0,87524.0,0.09845379]
[1740509269338,0.4730756,87525.0,87524.0,0.10145379]
[1740509270711,0.4730756,87525.0,87524.0,0.09845379]
[1740509271117,0.18902614,87525.0,87524.0,0.09845379]
[1740509271319,0.228503,87527.0,87524.0,0.11789927]
[1740509271641,0.171379,87525.0,87524.0,0.11989927]
[1740509272465,0.171379,87525.0,87524.0,0.11789927]
[1740509272667,0.171379,87525.0,87524.0,0.21589927]
[1740509272882,0.228434,87553.0,87537.0,0.01955379]
[1740509273062,0.342619,87561.0,87533.0,0.01955379]
[1740509273063,0.228469,87540.0,87533.0,0.01955379]
[1740509273305,0.528472,87538.0,87537.0,0.01955379]
[1740509274578,0.3,87538.0,87537.0,0.01955379]
[1740509274777,0.471354,87538.0,87537.0,0.01955379]
[1740509275020,0.471354,87538.0,87537.0,0.02626917]
[1740509275214,0.171354,87538.0,87537.0,0.01955379]
[1740509276014,0.171354,87538.0,87537.0,0.02155379]
[1740509276779,0.16688475,87538.0,87537.0,0.02155379]
[1740509277438,0.0016966,87542.0,87541.0,0.01955379]
[1740509278072,0.0016966,87542.0,87541.0,0.11955737]
[1740509278277,0.0016966,87542.0,87541.0,0.09455379]
[1740509278507,0.0016966,87542.0,87541.0,0.20669483]
[1740509278718,0.001696,87577.0,87541.0,0.20669483]
[1740509278719,0.001696,87577.0,87561.0,0.28686279]
[1740509278968,0.00182368,87562.0,87561.0,0.52903296]
[1740509279192,0.00182368,87562.0,87561.0,0.63174049]
[1740509279398,0.00182368,87562.0,87561.0,0.32713017]
[1740509279607,0.00182368,87562.0,87561.0,0.36440784]
[1740509279816,0.17313068,87562.0,87561.0,0.26840784]
[1740509280028,0.00182368,87562.0,87561.0,0.36440784]
[1740509280232,0.00182368,87562.0,87561.0,0.16747863]
[1740509280233,0.17313068,87562.0,87561.0,0.16747863]
[1740509280439,0.17313068,87562.0,87561.0,0.14975475]
[1740509280650,0.47313068,87562.0,87561.0,0.005]
[1740509281749,0.00182368,87562.0,87561.0,0.02455379]
[1740509281962,0.00182368,87562.0,87561.0,0.04074801]
[1740509282161,0.17313068,87562.0,87561.0,0.04274801]
[1740509282591,0.17313068,87562.0,87561.0,0.04074801]
[1740509282769,0.17313068,87562.0,87561.0,0.04374801]
[1740509283236,0.17313068,87562.0,87561.0,0.04074801]
[1740509283456,0.171322,87554.0,87553.0,0.0832]
[1740509283687,0.3,87555.0,87548.0,0.01955379]
[1740509283893,0.171356,87537.0,87536.0,0.01955475]
[1740509284068,0.171356,87537.0,87536.0,0.13073023]
[1740509284278,0.171356,87537.0,87536.0,0.01517644]
[1740509284518,0.171356,87537.0,87536.0,0.01955379]
[1740509285329,0.02707643,87537.0,87536.0,0.01955379]
[1740509285533,0.02707643,87537.0,87536.0,0.11555379]
[1740509285733,0.171356,87537.0,87536.0,0.11855379]
[1740509285908,0.19934249,87537.0,87536.0,0.14062917]
[1740509286294,0.19934249,87537.0,87536.0,0.14462917]
[1740509286493,0.18831309,87537.0,87536.0,0.14462917]
[1740509286680,0.18831309,87537.0,87536.0,0.14062917]
[1740509287125,0.0016984,87580.0,87558.0,0.01955379]
[1740509287354,0.0016984,87580.0,87561.0,0.33606279]
[1740509287563,0.0016984,87580.0,87576.0,0.28683279]
[1740509287946,0.02897004,87580.0,87576.0,0.20609464]
[1740509288062,0.172973,87577.0,87576.0,0.172]
[1740509288263,0.172973,87577.0,87576.0,0.076]
[1740509288468,0.171299,87566.0,87565.0,0.0822]
[1740509288670,0.171299,87566.0,87563.0,9.6e-07]
[1740509288671,0.171303,87564.0,87563.0,9.6e-07]
[1740509289335,0.228417,87559.0,87547.0,0.06845379]
[1740509289561,0.3,87561.0,87539.0,0.01955379]
[1740509289777,0.171334,87548.0,87547.0,0.00012748]
[1740509290135,0.471334,87548.0,87547.0,0.00012748]
[1740509291721,0.3,87549.0,87533.0,0.0473]
[1740509291945,0.171356,87537.0,87533.0,0.06685379]
[1740509292149,0.47129633,87537.0,87530.0,0.01955379]
[1740509292342,0.47129633,87537.0,87519.0,0.04740096]
[1740509292544,0.171389,87520.0,87519.0,0.0474]
[1740509292760,0.171389,87520.0,87519.0,0.06695379]
[1740509293614,0.19614068,87520.0,87519.0,0.06695379]
[1740509293770,0.19614068,87520.0,87519.0,0.09133917]
[1740509293972,0.02475168,87520.0,87519.0,0.09176426]
[1740509294179,0.171389,87520.0,87519.0,0.09176426]
[1740509294893,0.171389,87520.0,87519.0,0.06737888]
[1740509295101,0.171389,87520.0,87519.0,0.07237888]
[1740509295306,0.19528324,87520.0,87519.0,0.06737888]
[1740509295654,0.19528324,87520.0,87519.0,0.00042509]
[1740509295959,0.19528324,87520.0,87519.0,0.02497888]
[1740509296300,0.19528324,87520.0,87519.0,0.00542509]
[1740509296517,0.19528324,87520.0,87500.0,5e-07]
[1740509296518,0.3,87519.0,87500.0,5e-07]
[1740509296717,0.171422,87503.0,87500.0,5e-07]
[1740509296925,0.471444,87492.0,87491.0,0.01955379]
[1740509297124,0.171446,87491.0,87490.0,0.06475379]
[1740509297561,0.171457,87485.0,87484.0,0.11555379]
[1740509297770,0.171457,87485.0,87484.0,0.12710917]
[1740509297965,0.171457,87485.0,87484.0,0.03110917]
[1740509298199,0.171457,87485.0,87484.0,0.01955379]
[1740509298358,0.17156369,87485.0,87484.0,0.11555379]
[1740509298563,0.171465,87481.0,87480.0,0.01955379]
[1740509300109,0.19605014,87481.0,87480.0,0.02255379]
[1740509300668,0.02458514,87481.0,87480.0,0.03449398]
[1740509300880,0.00010669,87485.0,87484.0,0.28701279]
[1740509301103,0.00010669,87485.0,87484.0,0.21219464]
[1740509301346,0.17156369,87485.0,87484.0,0.1781]
[1740509301578,0.00010669,87485.0,87484.0,0.19765379]
[1740509301805,0.00010669,87485.0,87484.0,0.22370319]
[1740509302252,0.19613681,87487.0,87486.0,0.096]
[1740509302550,0.19613681,87487.0,87486.0,0.0961268]
[1740509302779,0.00856236,87514.0,87509.0,0.01955379]
[1740509302998,0.171401,87514.0,87513.0,0.01955379]
[1740509303214,0.471408,87510.0,87509.0,0.10255379]
[1740509303445,0.471408,87510.0,87509.0,0.10155379]
[1740509304473,0.02428594,87510.0,87509.0,0.14965379]
[1740509304729,0.02428594,87510.0,87509.0,0.44920342]
[1740509304959,0.003,87514.0,87513.0,0.28595679]
[1740509305368,0.003,87514.0,87513.0,0.11455379]
[1740509305566,0.02786187,87514.0,87513.0,0.11455379]
[1740509305742,0.171381,87524.0,87519.0,0.01955379]
[1740509305954,0.22843,87554.0,87519.0,0.28594479]
[1740509306172,0.171365,87533.0,87519.0,0.28594479]
[1740509306342,0.02630614,87520.0,87519.0,0.12909464]
[1740509306544,0.001697,87520.0,87519.0,0.1290956]
[1740509307110,0.02635231,87520.0,87519.0,0.1290956]
[1740509307305,0.02635231,87520.0,87519.0,0.15914546]
[1740509307707,0.02635231,87520.0,87519.0,0.1290956]
[1740509308050,0.02635231,87520.0,87519.0,0.0340956]
[1740509308262,0.02635231,87520.0,87519.0,0.1350956]
[1740509308399,0.19774131,87520.0,87519.0,0.11455475]
[1740509308594,0.02635231,87520.0,87519.0,0.11455475]
[1740509308796,0.001697,87520.0,87519.0,0.14765108]
[1740509309017,0.02644667,87520.0,87519.0,0.14765108]
[1740509309259,0.001697,87520.0,87519.0,0.14765108]
[1740509309756,0.001697,87520.0,87519.0,0.14165108]
[1740509309969,0.001697,87520.0,87519.0,0.31904208]
[1740509310224,0.001697,87520.0,87519.0,0.40114208]
[1740509310707,0.001697,87520.0,87519.0,0.22975108]
[1740509311333,0.001697,87520.0,87519.0,0.22375108]
[1740509311544,0.173086,87520.0,87519.0,0.1221956]
[1740509311758,0.173086,87520.0,87519.0,0.20265475]
[1740509311956,0.173086,87520.0,87519.0,0.19665475]
[1740509312104,0.173086,87520.0,87519.0,0.10765475]
[1740509312335,0.173086,87520.0,87519.0,0.08810096]
[1740509312665,0.173086,87520.0,87519.0,0.006]
[1740509312792,0.471393,87518.0,87517.0,0.01955379]
[1740509313335,0.171401,87514.0,87513.0,0.01955379]
[1740509318309,0.171401,87514.0,87513.0,0.02055379]
[1740509318715,0.471401,87514.0,87513.0,1e-08]
[1740509320481,0.23998004,87514.0,87513.0,1e-08]
[1740509320626,0.3,87515.0,87500.0,5.1e-07]
[1740509320826,0.171426,87501.0,87500.0,5.1e-07]
[1740509321490,0.171465,87481.0,87480.0,0.0454]
[1740509321696,0.3,87515.0,87475.0,0.0958481]
[1740509321697,0.171475,87476.0,87475.0,0.0958481]
[1740509322089,0.171475,87476.0,87475.0,0.0959749]
[1740509322981,0.171475,87476.0,87475.0,0.0009749]
[1740509323192,0.171475,87476.0,87475.0,0.1009749]
[1740509323582,0.171475,87476.0,87475.0,0.0959749]
[1740509324381,0.00847998,87485.0,87475.0,0.11311239]
[1740509324582,0.171475,87476.0,87475.0,0.11311239]
[1740509324993,0.171475,87476.0,87475.0,0.11611239]
[1740509325363,0.171475,87476.0,87475.0,0.0959749]
[1740509325496,0.171475,87476.0,87475.0,0.0979749]
[1740509325716,0.171475,87476.0,87475.0,0.0009749]
[1740509326123,0.171475,87476.0,87475.0,0.0049749]
[1740509326738,0.171475,87476.0,87462.0,2e-07]
[1740509326739,0.471501,87463.0,87462.0,2e-07]
[1740509326941,0.471528,87449.0,87448.0,1e-07]
[1740509327152,0.471554,87436.0,87433.0,0.0008492]
[1740509327439,0.471554,87436.0,87435.0,0.00095599]
[1740509327649,0.471575,87425.0,87415.0,0.0766]
[1740509327856,0.471575,87425.0,87424.0,0.00142691]
[1740509328265,0.471575,87425.0,87411.0,0.1412]
[1740509328266,0.471581,87422.0,87411.0,0.1412]
[1740509328438,0.471581,87422.0,87421.0,0.00097537]
[1740509329043,0.3,87422.0,87421.0,0.00097537]
[1740509329245,0.471581,87422.0,87421.0,0.00097537]
[1740509329576,0.49879327,87422.0,87421.0,0.00097537]
[1740509329980,0.49579327,87422.0,87421.0,0.00097537]
[1740509333298,0.49679327,87422.0,87421.0,0.00097537]
[1740509333574,0.49579327,87422.0,87421.0,0.00097537]
[1740509333883,0.49779327,87422.0,87421.0,0.00097537]
[1740509334542,0.471622,87401.0,87399.0,0.0778]
[1740509334741,0.471622,87401.0,87400.0,0.00016616]
[1740509335882,0.48017319,87401.0,87400.0,0.00016616]
[1740509336155,0.48217319,87401.0,87400.0,0.00016616]
[1740509336386,0.48017319,87401.0,87400.0,0.00016616]
[1740509336791,0.48117319,87401.0,87400.0,0.00016616]
[1740509337117,0.472622,87401.0,87400.0,0.00016616]
[1740509337316,0.301,87401.0,87400.0,0.00968278]
[1740509337593,0.3,87401.0,87400.0,0.00016616]
[1740509337879,0.471622,87401.0,87400.0,0.00016616]
[1740509340578,0.471622,87401.0,87400.0,0.26679016]
[1740509340579,0.3,87401.0,87400.0,0.26679016]
[1740509340759,0.3,87401.0,87400.0,0.31509016]
[1740509341584,0.3,87401.0,87400.0,0.14346616]
[1740509341753,0.471622,87401.0,87400.0,0.04846616]
[1740509341932,0.501622,87401.0,87400.0,0.00016616]
[1740509342312,0.501622,87401.0,87400.0,1.6e-07]
[1740509342512,0.49743743,87401.0,87400.0,1.6e-07]
[1740509342870,0.49743743,87401.0,87383.0,0.03387469]
[1740509342871,0.171648,87388.0,87383.0,0.03387469]
[1740509343378,0.3293,87403.0,87370.0,0.0808]
[1740509343532,0.171669,87377.0,87376.0,0.095]
[1740509343734,0.171687,87368.0,87367.0,0.048]
[1740509343937,0.171687,87368.0,87367.0,0.143]
[1740509344342,0.19632709,87368.0,87367.0,0.143]
[1740509344903,0.3,87377.0,87367.0,0.143]
[1740509344904,0.3293,87423.0,87381.0,0.1769]
[1740509345079,0.3293,87423.0,87388.0,0.095]
[1740509345356,0.3293,87423.0,87390.0,0.095]
[1740509345357,0.03453752,87418.0,87390.0,0.095]
[1740509345560,0.0084007,87410.0,87402.0,0.08]
[1740509345709,0.171618,87403.0,87402.0,0.08]
[1740509345915,0.228843,87396.0,87393.0,0.08]
[1740509346120,0.171632,87396.0,87395.0,0.095]
[1740509346496,0.171636,87394.0,87393.0,0.08]
[1740509346857,0.3,87393.0,87391.0,0.0471]
[1740509347038,0.171654,87385.0,87384.0,0.0772]
[1740509347216,0.171665,87379.0,87378.0,0.0457]
[1740509347414,0.471665,87379.0,87378.0,0.1407]
[1740509347593,0.471665,87379.0,87378.0,0.0457]
[1740509348241,0.171675,87374.0,87373.0,0.0772]
[1740509348485,0.171693,87365.0,87364.0,0.128]
[1740509348597,0.171693,87365.0,87364.0,0.223]
[1740509348819,0.171693,87365.0,87364.0,0.25686962]
[1740509349018,0.228921,87367.0,87364.0,0.25686962]
[1740509349332,0.02489562,87367.0,87366.0,0.095]
[1740509349537,0.3,87370.0,87369.0,0.095]
[1740509349735,0.3,87370.0,87369.0,0.30152532]
[1740509349973,0.001699,87401.0,87375.0,0.095]
[1740509350139,0.471671,87376.0,87375.0,0.095]
[1740509350334,0.471671,87376.0,87375.0,0.094]
[1740509350581,0.49574802,87376.0,87375.0,0.094]
[1740509351082,0.49574802,87376.0,87375.0,0.093]
[1740509351614,0.171693,87365.0,87364.0,0.128]
[1740509351786,0.171693,87365.0,87364.0,0.221]
[1740509351985,0.171693,87365.0,87364.0,0.24682371]
[1740509352372,0.171693,87365.0,87364.0,0.128]
[1740509352568,0.171693,87365.0,87364.0,0.14928924]
[1740509352732,0.471693,87365.0,87364.0,0.11428924]
[1740509352939,0.471693,87365.0,87364.0,0.02128924]
[1740509353152,0.472693,87365.0,87364.0,0.02528924]
[1740509353356,0.58654996,87365.0,87364.0,0.02528924]
[1740509353556,0.472693,87365.0,87364.0,0.02528924]
[1740509353852,0.472693,87365.0,87361.0,0.0132826]
[1740509353853,0.301,87365.0,87361.0,0.0132826]
[1740509354038,0.471699,87362.0,87361.0,0.0132826]
[1740509354867,0.471699,87362.0,87291.0,0.343676]
[1740509354868,0.3,87360.0,87325.0,0.08]
[1740509355062,0.471754,87334.0,87333.0,0.0938486]
[1740509355441,0.3,87334.0,87333.0,0.0938486]
[1740509355872,0.171699,87362.0,87361.0,0.001]
[1740509356100,0.471699,87362.0,87361.0,0.001]
[1740509356349,0.47174,87341.0,87340.0,0.093]
[1740509356524,0.47174,87341.0,87340.0,0.10138486]
[1740509356901,0.47174,87341.0,87340.0,0.092]
[1740509357621,0.4938473,87341.0,87340.0,0.092]
[1740509357820,0.471744,87340.0,87339.0,0.092]